Cogmind - Beta 12 X4 @@@ ROGUE MODE // 2022.12.02 @ 14:29:28 Player: Lunatic Blue Result: Destroyed by X-67 Chaingunner with Heavy Machine Gun Performance ------------- Evolutions (3) 1500 Regions Visited (9) 1800 Robots Destroyed (25) 125 Value Destroyed (780) 780 Prototype IDs (4) 80 Alien Tech Used (0) 0 Bonus (800) 800 TOTAL SCORE: 5085 Bonus ------- Entered DSFs 500 Aligned with FarCom 300 Cogmind --------- Core Integrity 0/700 Matter 114/300 Energy 70/100 System Corruption 10% Temperature Cool (2) Movement Hovering (56) Location -7/DSF Parts ------- > --- POWER (1) -------- (None) > --- PROPULSION (4) --- Gravmag System Gravmag System > --- UTILITY (5) ------ Terrain Scan Processor Hacking Suite > --- WEAPON (3) ------- (None) > --- INVENTORY (5) ---- Light Treads Improved Heat Sink Greatsword Peak State ------------ > --- POWER ------------ Micro Nuclear Core > --- PROPULSION ------- Light Treads Light Treads Wheel Armored Wheel > --- UTILITY ---------- Improved Cooling System Huge Storage Unit Visual Processing Unit Hardened Medium Armor Plating System Shield > --- WEAPON ----------- Improved Assault Rifle Improved Assault Rifle Minigun > --- INVENTORY -------- Improved Ion Engine Light Nuclear Core Light Nuclear Core Light Treads Light Treads Compact Wheel Heat Sink Improved Heat Sink Huge Storage Unit Advanced Targeting Computer Improved Medium Armor Plating Improved Medium Armor Plating Long-range Tractor Beam Improved EM Pulse Cannon Improved EM Pulse Cannon Improved EM Pulse Cannon Autogun Autogun Gauss Rifle Flak Cannon Grenade Launcher Grenade Launcher Rocket Launcher Field Lobotomy Kit Katana [Rating: 38] Favorites ----------- Power Ion Engine Engine Ion Engine Power Core Micro Nuclear Core Propulsion Light Treads Treads Light Treads Wheel Wheel Hover Unit Gravmag System Utility Huge Storage Unit Device Terrain Scanner Storage Huge Storage Unit Processor Visual Processing Unit Hackware System Shield Protection Improved Medium Armor Plating Weapon Autogun Energy Gun Small Laser Ballistic Gun Autogun Launcher Rocket Launcher Special Weapon Field Lobotomy Kit Slashing Weapon Greatsword Build | -11 -10 -10 -10 -9 -8 -7 -7 -7 -7 ------- Run | Scr Mat Min Exi Min Mat Fac Was Fac DSF Slots Evolved 6 | . . . . . 4 2 . . . Power . | . . . . . . . . . . Propulsion 2 | . . . . . 1 1 . . . Utility 3 | . . . . . 2 1 . . . Weapon 1 | . . . . . 1 . . . . Parts Attached 58 | 7 9 . 4 1 24 4 4 3 2 Power 6 | 1 2 . . . 2 1 . . . Engine 5 | 1 2 . . . 2 . . . . Core 1 | . . . . . . 1 . . . Reactor . | . . . . . . . . . . Propulsion 12 | 2 1 . . 1 4 1 1 . 2 Treads 3 | 1 . . . . 1 1 . . . Leg . | . . . . . . . . . . Wheel 7 | 1 1 . . 1 3 . 1 . . Hover 2 | . . . . . . . . . 2 Flight . | . . . . . . . . . . Utility 17 | 1 4 . 2 . 5 2 1 2 . Device 5 | . 1 . 2 . 1 1 . . . Storage 4 | 1 3 . . . . . . . . Processor 3 | . . . . . 2 . . 1 . Hackware 2 | . . . . . . 1 . 1 . Protection 3 | . . . . . 2 . 1 . . Artifact . | . . . . . . . . . . Weapon 23 | 3 2 . 2 . 13 . 2 1 . Energy Gun 4 | 2 1 . . . 1 . . . . Energy Cannon . | . . . . . . . . . . Ballistic Gun 13 | 1 1 . 1 . 10 . . . . Ballistic Cannon . | . . . . . . . . . . Launcher 3 | . . . . . 1 . 2 . . Special Weapon 1 | . . . 1 . . . . . . Impact Weapon . | . . . . . . . . . . Slashing Weapon 2 | . . . . . 1 . . 1 . Piercing Weapon . | . . . . . . . . . . Special Melee Weapon . | . . . . . . . . . . Unidentified Prototypes 4 | . . . 2 . 2 . . . . Parts Lost 13 | . 2 . . . 1 . 10 . . Power 2 | . 1 . . . . . 1 . . Propulsion 4 | . . . . . 1 . 3 . . Utility 2 | . . . . . . . 2 . . Weapon 5 | . 1 . . . . . 4 . . Highest Loss Streak 10 | . 2 . . . 1 . 10 . . To Critical Strikes . | . . . . . . . . . . Average Slot Usage (%) 91 | . 94 100 100 100 87 99 62 12 15 Engine 10 | . 13 14 14 14 9 5 . . . Treads 11 | . 14 14 14 14 9 15 9 . . Wheel 13 | . 14 14 14 14 12 15 9 . . Device 10 | . 7 14 14 14 9 11 4 . . Storage 11 | . 15 14 14 14 9 7 4 . . Processor 3 | . . . . . 7 7 4 2 7 Protection 2 | . . . . . 4 7 4 . . Energy Gun 6 | . 14 14 14 14 . . . . . Ballistic Gun 18 | . 14 14 14 14 25 23 14 . . Naked Turns 36 | . . . . . . . 27 9 . Heaviest Build 107 | 11 89 89 89 89 105 107 105 5 . Greatest Support 28 | 16 16 10 10 12 28 22 22 3 18 Greatest Overweight (x) 9 | 2 8 8 8 8 8 4 9 1 . Average Overweight (x) 5 | . 3 8 8 7 5 4 1 . . Largest Inventory Capacity 25 | 8 25 25 25 25 25 25 25 5 5 Average Capacity 22 | 7 16 25 25 25 25 25 17 5 5 Most Carried 25 | 4 12 12 13 15 25 25 25 2 4 Average Carried 15 | 2 8 12 12 13 21 24 16 2 4 Final Capacity 25 | 8 25 25 25 25 25 25 5 5 5 Final Carried 25 | 4 12 12 12 15 25 25 2 2 4 Class Distribution -------------------- 44% | Mutant 33% | Skirmisher 21% | Scavenger-Skirmisher Dominant Class ---------------- Mutant | -10/Materials Mutant | -10/Mines Mutant | -10/Exiles Skirmisher | -9/Mines Scavenger-Skirmisher | -8/Materials Skirmisher | -7/Factory Skirmisher | -7/Waste Mutant | -7/Factory Mutant | -7/DSF Resources | -11 -10 -10 -10 -9 -8 -7 -7 -7 -7 ----------- Run | Scr Mat Min Exi Min Mat Fac Was Fac DSF Matter Collected 962 | 220 214 . 13 50 465 . . . . Remotely . | . . . . . . . . . . Salvage Created 971 | . 413 . . . 558 . . . . Parts 48 | . 21 . . . 27 . . . . Haulers Intercepted 1 | . 1 . . . . . . . . Recyclers Shooed 3 | . 3 . . . . . . . . Parts Field Recycled . | . . . . . . . . . . Retrieved Matter . | . . . . . . . . . . Parts Self-Destructed . | . . . . . . . . . . Prevented . | . . . . . . . . . . Kills | -11 -10 -10 -10 -9 -8 -7 -7 -7 -7 ------- Run | Scr Mat Min Exi Min Mat Fac Was Fac DSF Combat Hostiles Destroyed 23 | . 9 . . . 14 . . . . Guns 20 | . 9 . . . 11 . . . . AOE 3 | . . . . . 3 . . . . Classes Destroyed 7 | . 4 . . . 3 . . . . Tunneler 1 | . 1 . . . . . . . . Hauler 1 | . 1 . . . . . . . . Swarmer 7 | . 3 . . . 4 . . . . Grunt 11 | . 6 . . . 5 . . . . Brawler 1 | . . . . . 1 . . . . Sentry 3 | . . . . . 3 . . . . Hunter 1 | . . . . . 1 . . . . Best Kill Streak 4 | . 3 . . . 4 . . . . Combat Bots Only 4 | . 3 . . . 4 . . . . Max Kills in Single Turn 3 | . 1 . . . 3 . . . . Gunslinging . | . . . . . . . . . . Exploded 3 | . . . . . 3 . . . . Melee . | . . . . . . . . . . Uniques/NPCs Destroyed . | . . . . . . . . . . Combat | -11 -10 -10 -10 -9 -8 -7 -7 -7 -7 -------- Run | Scr Mat Min Exi Min Mat Fac Was Fac DSF Damage Taken 1954 | . 539 . . . 539 . 697 . 179 Core 881 | . 94 . . . 65 . 543 . 179 Absorbed by Shields . | . . . . . . . . . . Core Remaining (%) 83 | 100 . . . 62 88 . . . . Volleys Fired 70 | . 41 . . . 28 1 . . . Largest 3 | . 2 . . . 3 3 . . . Hottest 74 | . 70 . . . 74 71 . . . Shots Fired 164 | . 82 . . . 79 3 . . . Gun 163 | . 82 . . . 78 3 . . . Cannon . | . . . . . . . . . . Launcher 1 | . . . . . 1 . . . . Special . | . . . . . . . . . . Kinetic 122 | . 41 . . . 78 3 . . . Thermal 41 | . 41 . . . . . . . . Explosive 1 | . . . . . 1 . . . . Electromagnetic . | . . . . . . . . . . Robot Hit Streak 12 | . 7 . . . 12 . . . . Robot Miss Streak 4 | . 4 . . . 3 . . . . Penetration Max 1 | . . . . . 1 . . . . Secondary Targets 3 | . 2 . . . 1 . . . . Max Gunslinging Chain 1 | . 1 . . . 1 . . . . Shots Hit Robots 107 | . 55 . . . 52 . . . . Core Hits 49 | . 22 . . . 27 . . . . Critical Kills . | . . . . . . . . . . Critical Parts Destroyed 1 | . . . . . 1 . . . . Critical Strikes 5 | . 4 . . . 1 . . . . Burn 4 | . 4 . . . . . . . . Destroy 1 | . . . . . 1 . . . . Melee Attacks 2 | . . . . . 2 . . . . Impact . | . . . . . . . . . . Slashing 2 | . . . . . 2 . . . . Piercing . | . . . . . . . . . . Sneak Attacks . | . . . . . . . . . . Combat Hostiles . | . . . . . . . . . . Follow-up Attacks . | . . . . . . . . . . Damage Inflicted 1845 | . 679 . . . 1115 18 33 . . Guns 1587 | . 679 . . . 890 18 . . . Cannons . | . . . . . . . . . . Explosions 225 | . . . . . 225 . . . . Melee . | . . . . . . . . . . Ramming 33 | . . . . . . . 33 . . Kinetic 1186 | . 278 . . . 890 18 . . . Thermal 401 | . 401 . . . . . . . . Explosive 225 | . . . . . 225 . . . . Electromagnetic . | . . . . . . . . . . Impact . | . . . . . . . . . . Slashing . | . . . . . . . . . . Piercing . | . . . . . . . . . . Highest Corruption 10 | . . . . . . . 10 10 10 Average Corruption 9 | . . . . . . . 8 10 10 Corruption Purged . | . . . . . . . . . . Corruption Blocked . | . . . . . . . . . . Effects 3 | . . . . . . . 2 . 1 Message Errors 1 | . . . . . . . 1 . . Matter Fused 2 | . . . . . . . 1 . 1 Overload Shots . | . . . . . . . . . . Overflow Damage 10 | . . . . . 10 . . . . Projectiles . | . . . . . . . . . . Explosions 10 | . . . . . 10 . . . . Melee . | . . . . . . . . . . Knockbacks . | . . . . . . . . . . Impact . | . . . . . . . . . . Kinetic . | . . . . . . . . . . Secondary . | . . . . . . . . . . Self-Inflicted Damage 16 | . . . . . . . 16 . . Shots . | . . . . . . . . . . Rammed 10 | . . . . . . . 10 . . Targets Rammed 10 | . . . . . . . 10 . . Kicked . | . . . . . . . . . . Crushed . | . . . . . . . . . . Highest Temperature 219 | . 219 . . . 107 . . . . Average Temperature 58 | . 78 . . . 27 . . . . Received Heat Transfer 471 | . 255 . . . 216 . . . . Siege Activations . | . . . . . . . . . . Robots Corrupted . | . . . . . . . . . . Combat Hostiles . | . . . . . . . . . . Parts Fried . | . . . . . . . . . . Impact Corruptions . | . . . . . . . . . . Robots Melted . | . . . . . . . . . . Combat Hostiles . | . . . . . . . . . . Parts Melted . | . . . . . . . . . . Heat Transferred 1361 | . 1361 . . . . . . . . Parts Sabotaged . | . . . . . . . . . . Parts Stolen . | . . . . . . . . . . Parts Stripped . | . . . . . . . . . . Power Chain Reactions . | . . . . . . . . . . Missiles Intercepted . | . . . . . . . . . . Alert | -11 -10 -10 -10 -9 -8 -7 -7 -7 -7 ------- Run | Scr Mat Min Exi Min Mat Fac Was Fac DSF Peak Influence 216 | . 216 24 . . 180 71 24 . . Initial 71 | . . 24 . . . 71 24 . . Average 63 | . 100 24 . . 70 71 13 . . Maximum Alert Level 1 | . 1 . . . . . . . . Low Security (%) 95 | 100 79 100 . 100 100 100 100 100 100 Level 1 4 | . 20 . . . . . . . . Level 2 . | . . . . . . . . . . Level 3 . | . . . . . . . . . . Level 4 . | . . . . . . . . . . Level 5 . | . . . . . . . . . . High Security . | . . . . . . . . . . Max Security . | . . . . . . . . . . Squads Dispatched . | . . . . . . . . . . Investigation . | . . . . . . . . . . Extermination . | . . . . . . . . . . Reinforcement . | . . . . . . . . . . Assault . | . . . . . . . . . . Garrison . | . . . . . . . . . . Intercept . | . . . . . . . . . . Searches Triggered . | . . . . . . . . . . Construction Impeded . | . . . . . . . . . . Haulers Reinforced . | . . . . . . . . . . Active Scanning Responses . | . . . . . . . . . . Cargo Convoy Interrupts . | . . . . . . . . . . Stealth | -11 -10 -10 -10 -9 -8 -7 -7 -7 -7 --------- Run | Scr Mat Min Exi Min Mat Fac Was Fac DSF Distress Signals 1 | . . . . . 1 . . . . Communications Jammed . | . . . . . . . . . . Distress Signals . | . . . . . . . . . . Times Spotted 39 | . 11 . . . 21 . 6 . 1 Peak Tracking Total 6 | . 3 . . . 4 . 6 . 1 Tactical Retreats 2 | . 1 . . . 1 . . . . Traps | -11 -10 -10 -10 -9 -8 -7 -7 -7 -7 ------- Run | Scr Mat Min Exi Min Mat Fac Was Fac DSF Traps Triggered 3 | . 1 . . . 1 1 . . . Indirectly . | . . . . . . . . . . Trap Hack Attempts . | . . . . . . . . . . Triggered . | . . . . . . . . . . Disarmed . | . . . . . . . . . . Reprogrammed . | . . . . . . . . . . Reused . | . . . . . . . . . . Traps Extracted . | . . . . . . . . . . Installed . | . . . . . . . . . . Triggered . | . . . . . . . . . . Machines | -11 -10 -10 -10 -9 -8 -7 -7 -7 -7 ---------- Run | Scr Mat Min Exi Min Mat Fac Was Fac DSF Machines Disabled 1 | . . . . . 1 . . . . Max in Single Turn 1 | . . . . . 1 . . . . Garrison Access 1 | . . . . . . 1 . . . Machines Sabotaged . | . . . . . . . . . . Overloaded Fab Kills . | . . . . . . . . . . Hacking | -11 -10 -10 -10 -9 -8 -7 -7 -7 -7 --------- Run | Scr Mat Min Exi Min Mat Fac Was Fac DSF Machines Accessed 9 | . 3 . 1 . 3 1 . 1 . Terminals 7 | . 3 . . . 3 . . 1 . Fabricators . | . . . . . . . . . . Repair Stations . | . . . . . . . . . . Recycling Units . | . . . . . . . . . . Scanalyzers . | . . . . . . . . . . Garrison Access 1 | . . . . . . 1 . . . Total Hacks 25 | . 11 . 1 . 7 3 . 3 . Successful 11 | . 5 . 1 . 3 1 . 1 . Failed 14 | . 6 . . . 4 2 . 2 . Catastrophic 1 | . . . . . . 1 . . . Database Lockouts . | . . . . . . . . . . Manual 14 | . 9 . 1 . 4 . . . . Terminals 21 | . 11 . . . 7 . . 3 . Fabricators . | . . . . . . . . . . Repair Stations . | . . . . . . . . . . Recycling Units . | . . . . . . . . . . Scanalyzers . | . . . . . . . . . . Garrison Access 3 | . . . . . . 3 . . . Terminal Hacks 6 | . 2 . 1 . 2 . . 1 . Record 1 | . . . 1 . . . . . . Robot Analysis 1 | . 1 . . . . . . . . Open DSF 1 | . . . . . . . . 1 . Terminal Index 1 | . 1 . . . . . . . . Unreport Threat 1 | . . . . . 1 . . . . Zone Layout 1 | . . . . . 1 . . . . Fabricator Hacks . | . . . . . . . . . . Repair Station Hacks . | . . . . . . . . . . Recycling Unit Hacks . | . . . . . . . . . . Scanalyzer . | . . . . . . . . . . Garrison Access Hacks 1 | . . . . . . 1 . . . Seal Access 1 | . . . . . . 1 . . . Unauthorized Hacks 4 | . 3 . . . 1 . . . . Terminals 4 | . 3 . . . 1 . . . . Assimilate 1 | . 1 . . . . . . . . Botnet 2 | . 1 . . . 1 . . . . Operators 1 | . 1 . . . . . . . . Fabricators . | . . . . . . . . . . Repair Stations . | . . . . . . . . . . Recycling Units . | . . . . . . . . . . Scanalyzers . | . . . . . . . . . . Garrison Access . | . . . . . . . . . . Data Cores Recovered . | . . . . . . . . . . Used . | . . . . . . . . . . Hacking Detections 8 | . 3 . . . 3 1 . 1 . Full Trace Events . | . . . . . . . . . . Feedback Events . | . . . . . . . . . . Feedback Blocked . | . . . . . . . . . . Robot Schematics Acquired . | . . . . . . . . . . Robots Built . | . . . . . . . . . . Authchips . | . . . . . . . . . . Time . | . . . . . . . . . . Total Robot Build Rating . | . . . . . . . . . . Part Schematics Acquired . | . . . . . . . . . . Parts Built . | . . . . . . . . . . Authchips . | . . . . . . . . . . Time . | . . . . . . . . . . Total Part Build Rating . | . . . . . . . . . . Parts Repaired . | . . . . . . . . . . Time . | . . . . . . . . . . Parts Recycled . | . . . . . . . . . . Recycled Matter . | . . . . . . . . . . Retrieved Matter . | . . . . . . . . . . Retrieved Components . | . . . . . . . . . . Parts Scanalyzed . | . . . . . . . . . . Part Schematics Acquired . | . . . . . . . . . . Parts Damaged . | . . . . . . . . . . Bothacking | -11 -10 -10 -10 -9 -8 -7 -7 -7 -7 ------------ Run | Scr Mat Min Exi Min Mat Fac Was Fac DSF Used RIF Installer . | . . . . . . . . . . Robots Hacked . | . . . . . . . . . . Non-combat . | . . . . . . . . . . Combat . | . . . . . . . . . . Robot Hacks Applied . | . . . . . . . . . . Relay Couplers Released . | . . . . . . . . . . Fabnet Peak Effective % . | . . . . . . . . . . Robots Rewired . | . . . . . . . . . . Allies Hacked . | . . . . . . . . . . Hacks Repelled . | . . . . . . . . . . Allies | -11 -10 -10 -10 -9 -8 -7 -7 -7 -7 -------- Run | Scr Mat Min Exi Min Mat Fac Was Fac DSF Total Allies . | . . . . . . . . . . Largest Group . | . . . . . . . . . . Highest-Rated Group . | . . . . . . . . . . Highest-Rated Ally . | . . . . . . . . . . Total Orders . | . . . . . . . . . . Ally Attacks . | . . . . . . . . . . Total Damage . | . . . . . . . . . . Kills . | . . . . . . . . . . Allies Corrupted . | . . . . . . . . . . Allies Melted . | . . . . . . . . . . Intel | -11 -10 -10 -10 -9 -8 -7 -7 -7 -7 ------- Run | Scr Mat Min Exi Min Mat Fac Was Fac DSF Robot Analysis Total 1 | . 1 . . . . . . . . Derelict Logs Recovered 2 | . . . . 2 . . . . . Drone Launches . | . . . . . . . . . . Drone Recoveries . | . . . . . . . . . . Exploration | -11 -10 -10 -10 -9 -8 -7 -7 -7 -7 ------------- Run | Scr Mat Min Exi Min Mat Fac Was Fac DSF Turns Passed 3068 | 61 579 79 547 232 1121 291 88 56 14 Spaces Moved 1589 | 48 287 38 270 116 478 192 78 61 21 Core 132 | 10 . . . . . . 42 61 19 Treads . | . . . . . . . . . . Legs . | . . . . . . . . . . Wheels 1455 | 38 287 38 270 116 478 192 36 . . Hover 2 | . . . . . . . . . 2 Flight . | . . . . . . . . . . Fastest Speed 50 | 50 100 200 200 195 140 145 50 50 50 Average Speed 159 | 98 134 200 200 198 175 145 94 86 50 Slowest Speed 215 | 150 200 200 200 200 210 145 215 100 60 Overloaded Moves . | . . . . . . . . . . Propulsion Burnouts . | . . . . . . . . . . Robots Hopped . | . . . . . . . . . . Cave-ins Triggered . | . . . . . . . . . . Exploration Rate (%) 33 | 4 56 10 70 32 34 9 80 2 33 Regions Visited 9 Branch Regions 3 Pre-discovered Areas 1 | . . . 1 . . . . . . Known Exits Taken 1 | . . . . . . . . 1 . Unknown Exits Taken 6 | 1 1 1 1 1 1 . . . . Scrap Searched 2 | . . . . 2 . . . . . Spaces Dug 13 | . . . . . 13 . . . . Terrain Destroyed 15 | . . . . . 15 . . . . Melee 2 | . . . . . 2 . . . . Projectile 2 | . . . . . 2 . . . . AOE 11 | . . . . . 11 . . . . Terrain Rammed . | . . . . . . . . . . Walls Destroyed . | . . . . . . . . . . Machines Disabled . | . . . . . . . . . . Actions | -11 -10 -10 -10 -9 -8 -7 -7 -7 -7 --------- Run | Scr Mat Min Exi Min Mat Fac Was Fac DSF Total 1983 | 58 400 42 277 118 706 204 91 63 24 Wait 184 | . 50 5 . . 129 . . . . Move 1581 | 47 286 37 269 115 477 192 77 60 21 Hop . | . . . . . . . . . . Pick Up 42 | 4 9 . 2 2 22 3 . . . Fast Attach 27 | 6 2 . . . 11 3 . 3 2 Attach 11 | . 2 . 1 . 3 1 4 . . Detach 2 | . . . . . 1 . . . 1 Swap 20 | 1 5 . 3 1 10 . . . . Drop 34 | . 5 . 2 . 23 4 . . . Fire 70 | . 41 . . . 28 1 . . . Melee 2 | . . . . . 2 . . . . Ram 10 | . . . . . . . 10 . . Kick . | . . . . . . . . . . Crush . | . . . . . . . . . . Escape Stasis . | . . . . . . . . . . Rewire . | . . . . . . . . . . Trap . | . . . . . . . . . . Miscellaneous . | . . . . . . . . . . Route ------- -11/Scrapyard -10/Materials (discovered 2 exits: [*Min x2]) -10/Mines -10/Exiles -9/Mines -8/Materials -7/Factory -7/Waste -7/Factory -7/DSF History --------- Turn | Location | Event 3 | -11/Scrapyard | Discovered new exit (range 15) 62 | -11/Scrapyard | Entered Materials 90 | -10/Materials | Discovered new exit (range 6) 361 | -10/Materials | Build established: Mutant 575 | -10/Materials | Discovered new exit (range 8) 641 | -10/Materials | Entered Mines 657 | -10/Mines | Met a Derelict bent on vengeance 712 | -10/Mines | Deemed a non-threat by the Exiles lab entrance 712 | -10/Mines | Discovered new exit (range 5) 720 | -10/Mines | Entered Exiles 770 | -10/Exiles | Met 8R-AWN 802 | -10/Exiles | Met EX-HEX 906 | -10/Exiles | Met EX-DEC 952 | -10/Exiles | Learned location of Zion (-7) 984 | -10/Exiles | Met EX-BIN 1012 | -10/Exiles | Aligned with FarCom system 1014 | -10/Exiles | Given EX-Vault access code 1060 | -10/Exiles | Opened EX-Vault 1073 | -10/Exiles | Found Prototype Special Weapon 1074 | -10/Exiles | Identified Field Lobotomy Kit 1079 | -10/Exiles | Found Prototype Device 1080 | -10/Exiles | Identified Skeleton Box 1123 | -10/Exiles | Warned to stay clear of 0b10 Research branches 1251 | -10/Exiles | Discovered new exit (range 10) 1267 | -10/Exiles | Left Exiles lab with Field Lobotomy Kit 1267 | -10/Exiles | Entered Mines 1391 | -9/Mines | Learned Materials stockpile data 1458 | -9/Mines | Discovered new exit (range 12) 1499 | -9/Mines | Entered Materials 1499 | -8/Materials | Evolved 4 slots: Propulsion x1, Utility x2, Weapon x1 1571 | -8/Materials | Build established: Skirmisher 2158 | -8/Materials | Build established: Scavenger-Skirmisher 2393 | -8/Materials | Discovered new exit (range 18) 2620 | -8/Materials | Entered Factory 2620 | -7/Factory | Evolved 2 slots: Propulsion x1, Utility x1 2650 | -7/Factory | Discovered new exit (range 6) 2812 | -7/Factory | Build established: Skirmisher 2911 | -7/Factory | Sucked down chute 2911 | -7/Factory | Entered Waste 2923 | -7/Waste | Spotted C-40 Crusher 2926 | -7/Waste | EMP discharged 2954 | -7/Waste | Spotted C-40 Crusher 2955 | -7/Waste | Spotted C-40 Crusher 2955 | -7/Waste | Spotted C-40 Crusher 2961 | -7/Waste | Crushed by Compactor (1 part destroyed, 1 dropped) 2962 | -7/Waste | Crushed by Compactor (1 part destroyed, 2 dropped) 2964 | -7/Waste | Crushed by Compactor (1 part destroyed, 2 dropped) 2965 | -7/Waste | Crushed by Compactor (1 part destroyed, 2 dropped) 2965 | -7/Waste | Spotted C-40 Crusher 2968 | -7/Waste | Crushed by Compactor (1 part destroyed) 2969 | -7/Waste | System corruption reached 10% 2971 | -7/Waste | Crushed by Compactor (1 part destroyed) 2972 | -7/Waste | Crushed by Compactor (1 part destroyed) 2974 | -7/Waste | Crushed by Compactor (1 part destroyed) 2976 | -7/Waste | Core integrity fell below 50% 2986 | -7/Waste | Spotted C-40 Crusher 2995 | -7/Waste | Discovered new exit (range 10) 2999 | -7/Waste | Entered Factory 3005 | -7/Factory | Lost 10 parts (1p3n2u4w) 3055 | -7/Factory | Identified exit to DSF 3055 | -7/Factory | Entered DSF 3059 | -7/DSF | Core integrity fell below 20% 3069 | -7/DSF | Destroyed by X-67 Chaingunner with Heavy Machine Gun Last Messages --------------- LOCATION=UNKNOWN GOAL=ESCAPE 02999_ Receiving FarCom transmissions... 03008_ Acquired Greatsword. 03025_ Acquired Hacking Suite. 03030_ Acquired Terrain Scan Processor. 03055_ Connecting with DSF Access... 03055_ Current location identified: Factory >>Open(DSF) DSF access unlocked. 03055_ EXIT=UNLOCKED: DSF 03055_ Connecting with DSF Access... LOCATION=DSF AMBIENT_HEAT=-10 GOAL=ESCAPE 03055_ Receiving FarCom transmissions... 03058_ X-67 Chaingunner springs to life. 03061_ System corrupted: Matter fused (-8). 03066_ Acquired Gravmag System. 03068_ Slug penetrates Wall. Map ----- +----------------------------------------------------+ | ????????????????????????????????? | | ????????????????????????????????? | | ????????????????????????????????? | | ?????????##?????????????????????? | | ?????????""#????????????????????? | | ?????????#"#????????????????????? | | ??????####"##???????????????????? | | ??????#"""""#?###???#???????????? | | ??????#"""""##[[#[[[#[[ ???????? | | ???#"##"" ????? | | ???#""""" ????? | | ????###"" ##[[# ### #?????? | | ??????### ##?[[#?? #???????????? | | ???????## ###?##???????????????? | | ???????# #??????????????????? | | ???????# x #??????????????????? | | ???????## ###??????????????????? | | ???????# [[#??????????????????? | | ???????# [[#??????????????????? | | ???????# [[#??????????????????? | | ??????### ###??#???????????????? | | ??????#!! #??!!#???#???????????? | | ??????#!! ##!!!#!!!##a?????????? | | ??????# = ????????? | | ??????# =% H???????? | | ??????#=@ ????????? | | ??????# ;; #!!!## ?????????? | | ??????# ## #??!#???????????? | | ??????######??###???????????????? | | ????????????????????????????????? | | ????????????????????????????????? | | ????????????????????????????????? | | ????????????????????????????????? | | ????????????????????????????????? | | ????????????????????????????????? | | ????????????????????????????????? | | ????????????????????????????????? | | ????????????????????????????????? | | ????????????????????????????????? | | ????????????????????????????????? | | ????????????????????????????????? | | ????????????????????????????????? | | ????????????????????????????????? | | ????????????????????????????????? | | ????????????????????????????????? | | ????????????????????????????????? | | ????????????????????????????????? | | ????????????????????????????????? | | ????????????????????????????????? | | ????????????????????????????????? | +----------------------------------------------------+ Best States ------------- Heat Dissipation 61 Energy Generation 15 Energy Capacity 265 Matter Stores 300 Matter Capacity 300 Sight Range 18 Terrain Scan Range 14 Terrain Scan Density 85 Armor Coverage 225 Evasion (%) 50 Recoil Reduction 1 Offensive Hacking 10 Defensive Hacking 10 Item Schematics ----------------- None Robot Schematics ------------------ None Fabricated ------------ Nothing Alien Tech Used ----------------- None Achievements -------------- None Challenges ------------ None Game ------ Seed HeartTerrainPurifier Manual? 0 Play Time 00:17:38 Cumulative 113.3 hours Start 2022.12.02 @ 14:12:02 End 2022.12.02 @ 14:29:28 Sessions 1 Manual Loads 0 Difficulty Rogue Special Mode None Game No. 207 Rogue 207 Adventurer 0 Explorer 0 Win Type - Total 2 Types 1/0/1/0/0/0/0/0/0 Lore% 63 Gallery% 70 Achievement% 51 Wizard Run 0 Options --------- ASCII 0 Keyboard 0 Movement Mouse Keybinds 0 Fullscreen 1 Font 18/SmallcapsGlow Map View 76x50 Tactical HUD 1 Map Filters NONE Filters NONE Steam 1 RUN: a044c398-6430-4e23-8e75-3a992b3e4d50